bitfinex/quotes_ETHUSD_20260304
["timestamp","ask_amount","ask_price","bid_price","bid_amount"]
[1772588462774,0.67927232,1991.7,1991.0,5.02348619]
[1772588462775,0.67927232,1991.6,1991.0,0.001]
[1772588462979,0.67927232,1991.4,1991.0,0.001]
[1772588463707,0.67927232,1991.2,1990.4,4.27568055]
[1772588463901,0.67927232,1991.0,1990.4,1.25602271]
[1772588464211,0.67927232,1991.0,1990.1,5.72802116]
[1772588464212,0.67927232,1991.0,1990.1,1.25721156]
[1772588464417,1.397,1991.1,1990.2,1.25714953]
[1772588464418,0.67927232,1990.8,1990.2,1.25714953]
[1772588464920,0.67927232,1990.7,1990.2,0.001]
[1772588466403,0.67927232,1990.7,1990.2,1.25714181]
[1772588466576,0.67927232,1990.7,1990.2,0.001]
[1772588466772,0.67927232,1990.6,1990.2,0.001]
[1772588467002,0.67927232,1991.0,1990.2,0.001]
[1772588467202,2.07527232,1991.0,1990.2,0.001]
[1772588467605,0.67927232,1990.9,1990.2,0.001]
[1772588468501,0.67927232,1990.8,1990.0,0.001]
[1772588468701,0.67927232,1990.6,1990.0,0.001]
[1772588468905,1.396,1990.5,1990.0,0.001]
[1772588469097,0.67927232,1990.6,1990.0,0.001]
[1772588469298,2.07527232,1990.6,1990.0,0.001]
[1772588469903,0.67927232,1990.6,1990.0,0.001]
[1772588470209,2.07527232,1990.6,1990.0,0.001]
[1772588470412,2.07527232,1991.2,1990.3,1.25938665]
[1772588470605,2.07527232,1991.2,1990.0,0.001]
[1772588470606,0.67927232,1991.1,1990.0,0.001]
[1772588470806,0.67927232,1991.1,1990.0,1.2572814]
[1772588470807,0.67927232,1990.9,1990.0,1.2572814]
[1772588471412,0.67927232,1990.9,1990.0,0.001]
[1772588472407,0.67927232,1990.9,1990.1,0.001]
[1772588473007,0.67927232,1990.7,1990.1,0.001]
[1772588473588,1.395,1990.6,1990.1,0.001]
[1772588474190,0.67927232,1990.5,1990.1,0.001]
[1772588475008,1.395,1990.4,1990.1,0.001]
[1772588475310,2.07427232,1990.4,1990.1,0.001]
[1772588475683,0.67927232,1990.4,1990.1,0.001]
[1772588475900,1.395,1990.4,1990.1,0.001]
[1772588476096,5.02266015,1991.0,1990.1,0.70318696]
[1772588476097,2.07427232,1991.0,1990.1,0.70318696]
[1772588476297,0.67927232,1990.9,1990.1,0.001]
[1772588476697,0.67927232,1990.8,1990.1,0.001]
[1772588476914,0.67927232,1990.6,1990.1,0.001]
[1772588478318,7.10795678,1991.2,1990.2,1.95460474]
[1772588478524,3.27754414,1991.1,1990.2,1.95460474]
[1772588478693,0.62795678,1991.0,1990.2,1.95460474]
[1772588479412,0.62795678,1991.0,1990.3,1.25609204]
[1772588479615,1.394,1990.9,1990.3,1.25609204]
[1772588479913,2.06583097,1990.9,1990.3,1.25609204]
[1772588481192,7.15183097,1991.2,1990.3,1.25609204]
[1772588481420,1.394,1991.1,1990.6,1.25938665]
[1772588481726,0.67183097,1991.2,1990.5,1.25938665]
[1772588481930,1.394,1991.0,1990.5,1.25938665]
[1772588482105,1.394,1991.0,1990.3,1.25609204]
[1772588482106,0.67183097,1991.5,1990.7,1.9025255]
[1772588482300,2.06583097,1991.5,1990.7,1.9025255]
[1772588482707,3.32116697,1991.5,1990.7,1.9025255]
[1772588482911,0.67183097,1991.4,1990.7,1.25938665]
[1772588483110,0.67383097,1991.7,1990.7,1.9025255]
[1772588483440,2.64930121,1991.6,1990.8,1.25577657]
[1772588483749,3.32113218,1991.6,1990.8,1.25577657]
[1772588483900,1.393,1991.5,1990.8,1.25577657]
[1772588484797,0.67183097,1991.4,1990.8,1.25577657]
[1772588485297,0.002,1991.1,1990.6,5.02361025]
[1772588487108,0.002,1991.4,1991.0,0.64313885]
[1772588487311,0.002,1991.4,1991.0,1.25565042]
[1772588489213,0.002,1991.4,1991.1,1.25938665]
[1772588489418,0.002,1991.4,1991.0,1.25565042]
[1772588489940,0.67383097,1991.4,1990.8,1.25573476]
[1772588490939,0.67383097,1991.4,1990.6,5.02353445]
[1772588491343,0.67383097,1991.4,1990.4,1.25602893]
[1772588491344,0.67183097,1991.2,1990.4,1.25602893]
[1772588491545,1.392,1991.2,1990.5,1.9025255]
[1772588491845,1.392,1991.2,1990.6,1.25590274]
[1772588492041,2.06383097,1991.2,1990.6,1.25590274]
[1772588492221,0.67183097,1991.2,1990.6,1.25590274]
[1772588492624,0.002,1991.4,1990.6,1.25590274]
[1772588492829,1.391,1991.3,1990.6,1.89904159]
[1772588494531,0.002,1991.4,1990.6,1.89904159]
[1772588494732,2.64840389,1991.4,1990.6,1.89904159]
[1772588495244,3.32023486,1991.4,1990.6,1.89904159]
[1772588495813,0.67183097,1991.3,1990.4,5.02361097]
[1772588496016,0.67183097,1991.3,1990.4,5.66674982]
[1772588497238,2.06183097,1991.3,1990.5,0.64313885]
[1772588497644,2.06183097,1991.3,1990.5,0.64413885]
[1772588497946,2.06183097,1991.3,1990.5,1.25692371]
[1772588497947,0.67183097,1991.1,1990.5,1.25692371]
[1772588498262,1.25752862,1991.2,1990.5,1.25692371]
[1772588498263,0.002,1991.2,1990.5,1.25692371]
[1772588498421,1.392,1991.2,1990.6,0.64313885]
[1772588499369,0.002,1991.2,1990.6,0.64313885]
[1772588500152,0.002,1991.2,1990.7,1.25583965]
[1772588501650,0.002,1991.2,1990.8,0.64313885]
[1772588502319,0.002,1991.2,1990.9,1.25571349]
[1772588504454,0.002,1991.2,1990.6,1.89904159]
[1772588504952,0.67383097,1991.2,1990.6,1.25590274]
[1772588505762,2.06183097,1991.2,1990.6,1.25590274]
[1772588506526,2.06183097,1991.2,1990.5,5.02461097]
[1772588507618,1.389,1991.2,1990.6,0.64313885]
[1772588508428,1.389,1991.2,1990.7,1.25583965]
[1772588508429,0.002,1991.2,1990.7,1.25583965]
[1772588509426,0.62236092,1991.2,1990.7,1.25583965]
[1772588510351,0.002,1991.2,1990.7,1.88539893]
[1772588510724,0.002,1991.2,1990.8,0.62955928]
[1772588511052,0.002,1991.7,1991.0,0.62955928]
[1772588511425,0.002,1991.7,1990.9,2.36184746]
[1772588511426,0.002,1991.7,1991.2,0.62955928]
[1772588512178,0.002,1991.4,1991.2,0.62955928]
[1772588512468,0.002,1991.7,1991.1,1.25558736]
[1772588512621,0.002,1991.7,1991.1,1.88514664]
[1772588513328,0.62236092,1991.7,1991.1,1.25558736]
[1772588513525,5.02218818,1992.0,1991.3,0.62955928]
[1772588513526,0.002,1992.0,1991.3,0.62955928]
[1772588513859,0.002,1992.6,1992.0,0.62955928]
[1772588514463,0.002,1992.6,1992.1,1.25495708]
[1772588516344,0.002,1992.7,1992.2,0.62955928]
[1772588516550,0.002,1992.7,1992.3,1.25483109]
[1772588518364,0.002,1992.9,1992.5,0.62955928]
[1772588518666,0.002,1993.2,1992.7,0.62955928]
[1772588520404,0.62036092,1993.8,1992.8,0.62955928]
[1772588520619,1.87425313,1993.8,1992.9,1.88401258]
[1772588521076,1.87425313,1993.8,1993.0,0.62955928]
[1772588521077,0.62036092,1993.8,1993.0,0.62955928]
[1772588521492,0.62036092,1993.7,1993.0,0.62955928]
[1772588521866,0.62036092,1993.7,1992.9,1.2544533]
[1772588523182,0.62036092,1993.5,1992.6,5.01852568]
[1772588523840,0.62036092,1993.5,1992.6,5.64808496]
[1772588524030,2.00036092,1993.5,1992.6,5.64808496]
[1772588524227,2.00036092,1993.5,1992.3,1.76633551]
[1772588524228,0.62036092,1993.4,1992.3,1.76633551]
[1772588524385,0.62036092,1993.2,1991.9,0.62955928]
[1772588524788,0.62036092,1992.9,1991.8,5.0205575]
[1772588525013,1.76633551,1993.0,1991.8,5.0205575]
[1772588525014,0.62036092,1992.7,1991.8,5.0205575]
[1772588525224,0.62036092,1992.7,1991.7,1.25514609]
[1772588525225,1.87500309,1992.6,1991.7,1.25514609]
[1772588525525,0.62036092,1992.8,1991.8,0.62955928]
[1772588525722,0.002,1993.6,1991.7,3.0214816]
[1772588525723,1.87453106,1993.4,1992.3,0.62955928]
[1772588525901,3.25353106,1993.4,1992.3,0.62955928]
[1772588526102,1.99936092,1993.4,1992.3,2.39589479]
[1772588526323,1.25408093,1993.5,1992.4,0.62955928]
[1772588526495,0.62036092,1993.5,1992.4,0.62955928]
[1772588527319,0.002,1993.6,1992.7,0.62955928]
[1772588527523,0.002,1993.6,1993.0,0.62955928]
[1772588527726,0.002,1993.7,1993.0,0.62955928]
[1772588529628,0.002,1993.7,1993.1,1.8838867]
[1772588530638,0.003,1994.5,1993.1,1.8838867]
[1772588530639,0.90285568,1997.4,1994.7,2.5579123]
[1772588530850,0.90285568,1997.4,1995.8,0.62955928]
[1772588531011,0.62036092,1997.3,1995.9,3.26733551]
[1772588531341,0.62036092,1997.3,1995.5,3.53267102]
[1772588531342,0.62036092,1996.7,1995.6,0.14948499]
[1772588531512,0.62036092,1996.7,1995.9,1.25256776]
[1772588531714,0.62036092,1996.7,1995.5,1.25281884]
[1772588531927,1.8724344,1996.7,1995.5,1.88237812]
[1772588532108,0.62036092,1996.6,1995.5,1.25281884]
[1772588532810,0.62036092,1996.6,1995.0,1.25309129]
[1772588532811,0.62036092,1996.3,1995.0,1.25309129]
[1772588533132,0.62036092,1996.3,1995.1,0.62955928]
[1772588533307,3.01840659,1996.7,1995.2,0.62955928]
[1772588533308,0.62036092,1996.7,1995.2,0.62955928]
[1772588533507,0.62036092,1996.7,1995.1,1.76633551]
[1772588533508,0.62036092,1996.7,1995.3,2.12155928]
[1772588533735,0.62036092,1996.6,1995.4,1.25288162]
[1772588534136,0.62036092,1996.1,1994.8,1.25325847]
[1772588534340,0.62036092,1996.1,1994.7,7.57094618]
[1772588534341,0.62036092,1996.1,1994.7,2.5579123]
[1772588534547,0.62036092,1995.6,1994.3,1.25357268]
[1772588535610,1.87317976,1995.5,1994.3,1.25357268]
[1772588535814,0.62036092,1995.4,1994.3,1.25357268]
[1772588536518,0.62036092,1995.4,1994.4,0.6]
[1772588537042,10.30808231,1996.5,1994.3,1.25357268]
[1772588537043,1.40745318,1997.7,1995.3,5.29900653]
[1772588537211,1.40745318,1997.7,1996.2,1.02678123]
[1772588537212,0.62036092,1997.6,1996.2,1.02678123]
[1772588537414,0.62036092,1997.4,1995.5,1.83187151]
[1772588537633,0.002,1996.6,1995.6,1.482]
[1772588537833,0.002,1996.6,1995.8,1.76633551]
[1772588538552,0.002,1996.8,1995.9,1.68590163]
[1772588538918,2.82680162,1997.7,1996.2,1.68590163]
[1772588539152,1.4074368,1997.7,1996.3,1.481]
[1772588539318,1.4074368,1997.7,1996.3,2.16675894]
[1772588539523,0.1559917,1997.7,1996.6,0.68575894]
[1772588539719,0.1559917,1997.7,1996.2,1.68590163]
[1772588539720,1.40744113,1997.7,1996.7,1.2520659]
[1772588540250,1.4074381,1997.7,1996.7,1.2520659]
[1772588540451,1.4074381,1997.7,1996.6,1.25209837]
[1772588540751,0.67799798,1997.6,1996.4,1.25219933]
[1772588541264,0.67799798,1997.6,1996.0,1.25250501]
[1772588541925,0.67799798,1997.6,1996.1,0.68575894]
[1772588541926,1.25156445,1997.5,1996.1,0.68575894]
[1772588542126,0.1559917,1997.7,1996.5,0.68575894]
[1772588542530,1.40743528,1997.7,1996.5,0.68575894]
[1772588542831,0.1559917,1997.7,1996.5,0.68575894]
[1772588543632,0.1559917,1997.7,1996.2,2.17175894]
[1772588543954,3.29208208,1998.8,1997.2,2.37166057]
[1772588544155,0.67799798,1998.7,1997.2,0.68575894]
[1772588544523,0.67799798,1998.7,1997.3,0.83524393]
[1772588544759,3.07515515,1999.2,1997.8,1.68590163]
[1772588544760,0.67799798,1999.1,1997.8,1.68590163]
[1772588544963,1.82463714,1999.2,1997.8,1.68590163]
[1772588544964,1.82463714,1999.2,1997.9,0.68575894]
[1772588545374,0.67799798,1999.1,1997.4,4.95926071]
[1772588545588,0.67799798,1999.1,1997.5,1.68590163]
[1772588545873,0.67799798,1999.1,1997.6,1.93726074]
[1772588546245,0.67799798,1999.0,1997.6,1.2515018]
[1772588546547,1.82463714,1999.2,1997.8,2.37166057]
[1772588547358,2.50263512,1999.2,1997.8,2.37166057]
[1772588547681,0.67799798,1999.1,1997.8,0.68575894]
[1772588547974,0.67799798,1999.1,1997.9,1.25131387]
[1772588548493,0.67799798,1999.0,1997.9,1.25131387]
[1772588548977,0.67799798,1999.0,1997.7,0.6]
[1772588548978,0.67799798,1999.0,1997.7,1.85142991]
[1772588549545,0.67799798,1999.0,1997.7,1.25142991]
[1772588549745,0.67799798,1998.8,1997.5,4.9592399]
[1772588549948,0.67799798,1998.8,1997.5,6.21076408]
[1772588550172,0.67799798,1998.8,1997.5,4.9592399]
[1772588550561,0.67799798,1998.6,1997.5,4.9592399]
[1772588550765,0.67799798,1998.6,1997.5,6.21080085]
[1772588551300,0.67799798,1998.6,1997.5,4.9592399]
[1772588551865,0.67799798,1998.4,1997.5,4.9592399]
[1772588553162,0.67799798,1998.4,1997.5,6.21078016]
[1772588553682,1.68590163,1998.9,1997.5,6.21078016]
[1772588553683,0.002,1999.1,1997.6,0.68575894]
[1772588553850,1.25259283,1999.1,1997.9,1.25131387]
[1772588554050,0.002,1999.1,1997.9,1.25131387]
[1772588554256,0.002,1999.1,1998.4,1.68590163]
[1772588554668,0.002,1999.1,1998.2,0.68575894]
[1772588554883,0.002,1999.2,1998.2,0.68575894]
[1772588555052,0.002,1999.4,1998.5,0.68575894]
[1772588555597,0.002,1999.4,1998.6,0.83524393]
[1772588555878,0.002,1999.4,1998.7,1.93657196]
[1772588556078,0.002,1999.4,1998.7,1.25081302]
[1772588556412,0.002,1999.4,1998.6,2.37166057]
[1772588556550,0.002,1999.4,1998.8,1.20095324]
[1772588556749,0.002,1999.4,1998.8,1.88671218]
[1772588557167,0.002,1999.4,1998.4,2.45195404]
[1772588557565,0.67999798,1999.4,1998.3,1.25101741]
[1772588558075,1.92843563,1999.3,1998.0,5.00499009]
[1772588558280,0.67799798,1999.2,1998.0,5.00499009]
[1772588558575,0.67799798,1999.2,1998.3,0.6]
[1772588558781,1.25240623,1999.4,1998.3,0.6]
[1772588558978,0.67799798,1999.3,1998.3,0.6]
[1772588560059,1.2505002,1999.2,1998.4,1.2510008]
[1772588560674,1.2505002,1999.2,1998.3,5.6040032]
[1772588560675,1.2505002,1999.2,1998.3,1.85102277]
[1772588561369,1.92849818,1999.2,1998.3,0.6]
[1772588561583,0.67799798,1999.1,1998.3,0.6]
[1772588562380,1.25062531,1999.0,1998.3,0.6]
[1772588562959,1.92862329,1999.0,1998.3,0.6]
[1772588563185,0.67799798,1998.8,1997.6,0.001]
[1772588563485,0.67799798,1998.8,1997.6,1.25249943]
[1772588563983,1.25062531,1999.0,1997.6,0.001]
[1772588563984,0.67799798,1998.5,1997.6,0.001]
[1772588564389,1.25112601,1998.2,1997.6,0.001]
[1772588564586,1.92912399,1998.2,1997.6,0.001]
[1772588565279,0.67799798,1998.1,1997.6,0.001]
[1772588565893,2.05399798,1998.1,1997.6,0.001]
[1772588566257,1.25125125,1998.0,1997.6,0.001]
[1772588566492,1.25120689,1998.1,1997.6,0.001]
[1772588566790,1.2510008,1998.4,1997.6,0.001]
[1772588566994,1.92899878,1998.4,1997.6,0.001]
[1772588567195,0.67799798,1998.3,1997.6,0.001]
[1772588568865,6.38081816,1998.5,1997.6,0.001]
[1772588568866,1.25098751,1998.5,1997.6,0.001]
[1772588569065,0.63535684,1998.5,1997.6,0.001]
[1772588569586,0.63535684,1998.3,1997.6,0.001]
[1772588569897,0.63535684,1998.3,1997.5,0.001]
[1772588570964,0.63535684,1998.0,1997.3,0.001]
[1772588571488,0.63535684,1997.8,1997.3,0.001]
[1772588571673,2.01835684,1997.7,1997.3,0.001]
[1772588572985,1.88685864,1997.6,1997.3,0.001]
[1772588573369,1.88685864,1997.6,1996.4,1.25225405]
[1772588573370,1.83631008,1997.5,1996.4,1.25225405]
[1772588574264,0.63535684,1997.4,1996.4,1.25225405]
[1772588574783,0.63535684,1997.4,1996.3,1.25228124]
[1772588575180,1.25168978,1997.3,1996.2,5.00942642]
[1772588576376,1.25168978,1997.3,1996.3,0.001]
[1772588576579,0.63535684,1997.2,1996.3,0.001]
[1772588577270,2.63781513,1997.1,1996.3,0.001]
[1772588577994,0.63535684,1997.0,1996.3,0.001]
[1772588578774,0.63535684,1997.0,1996.2,0.001]
[1772588579698,2.63792053,1997.0,1996.2,0.001]
[1772588579899,1.386,1996.9,1996.2,0.001]
[1772588580775,2.02135684,1996.8,1996.2,0.001]
[1772588581576,2.45287377,1997.0,1996.2,0.001]
[1772588581577,5.00756301,1997.0,1996.2,0.001]
[1772588581799,0.63535684,1996.8,1996.2,0.001]
[1772588582007,0.63535684,1996.8,1996.0,0.001]
[1772588582008,0.63535684,1996.7,1996.0,0.001]
[1772588582217,0.63535684,1996.4,1995.7,0.001]
[1772588582378,1.20095324,1996.5,1995.7,0.001]
[1772588582379,0.63535684,1996.2,1995.7,0.001]
[1772588582578,0.63535684,1996.2,1995.5,0.001]
[1772588582882,0.63535684,1996.0,1995.5,0.001]
[1772588583602,1.25256776,1995.9,1995.5,0.001]
[1772588583772,1.25256776,1995.9,1995.1,1.25305925]
[1772588583773,1.8879246,1995.9,1995.1,1.25305925]
[1772588584866,0.63535684,1995.8,1994.8,1.25325847]
[1772588585069,1.386,1995.7,1994.8,1.25325847]
[1772588585709,1.25275606,1995.6,1994.8,1.25325847]
[1772588586124,1.25275606,1995.6,1994.7,1.25328762]
[1772588586125,1.8881129,1995.6,1994.7,1.25328762]
[1772588586440,1.8881129,1995.6,1994.4,1.25350982]
[1772588586441,0.63535684,1995.5,1994.4,1.25350982]
[1772588587781,1.25294441,1995.3,1994.2,0.69312917]
[1772588588394,0.63535684,1995.2,1994.1,1.25369841]
[1772588588785,0.63535684,1995.2,1993.9,5.01523446]
[1772588588981,0.63535684,1994.9,1993.7,1.25394994]
[1772588589189,2.02035684,1994.8,1993.7,1.25394994]
[1772588589511,0.63535684,1994.7,1993.7,1.25394994]
[1772588589813,1.25294441,1995.3,1993.7,1.25394994]
[1772588589814,1.385,1995.1,1994.0,0.69312917]
[1772588590525,2.02035684,1995.1,1994.5,0.001]
[1772588590895,1.385,1995.1,1994.5,0.001]
[1772588591616,1.385,1995.4,1994.5,0.69412917]
[1772588591808,2.63794349,1995.4,1994.6,1.25338413]
[1772588592507,1.385,1995.4,1994.6,1.25338413]
[1772588592712,2.63789463,1995.4,1994.6,1.25338413]
[1772588593200,2.63788451,1995.4,1994.6,1.25338413]
[1772588594300,2.63788451,1995.4,1994.5,0.001]
[1772588594502,2.63788451,1995.4,1994.4,4.96603419]
[1772588594821,3.27324135,1995.4,1994.4,4.96603419]
[1772588595226,1.385,1995.4,1994.4,5.65916336]
[1772588595426,2.6378887,1995.4,1994.4,5.65916336]
[1772588595797,2.63788199,1995.4,1994.4,5.65916336]
[1772588596007,2.63788505,1995.4,1994.4,5.65916336]
[1772588596297,2.63788419,1995.4,1994.4,5.65916336]
[1772588596935,2.63759755,1995.9,1994.7,0.69312917]
[1772588597146,2.63757489,1995.9,1994.7,0.69312917]
[1772588597505,0.63535684,1995.8,1994.5,0.6]
[1772588597705,0.63535684,1995.8,1994.4,4.96603419]
[1772588597905,0.63535684,1995.8,1994.4,5.65916336]
[1772588599097,0.63535684,1995.8,1994.5,0.63299532]
[1772588599098,1.91006679,1995.7,1994.5,0.63299532]
[1772588599323,3.29306679,1995.7,1994.5,0.63299532]
[1772588599524,2.0403735,1995.7,1994.6,0.62704122]
[1772588599834,5.01228958,1995.9,1994.6,0.62704122]
[1772588599835,1.25459542,1995.9,1994.6,0.62704122]
[1772588600634,1.85345234,1995.9,1994.6,0.62704122]
[1772588600829,0.60085692,1995.9,1994.6,0.62704122]
[1772588601037,0.002,1995.9,1995.0,1.25313283]
[1772588602532,0.60085692,1995.9,1995.0,1.25313283]
[1772588603332,1.85347184,1995.9,1995.0,1.25313283]
[1772588603532,1.85347184,1995.9,1995.1,0.001]
[1772588603533,0.59885692,1995.8,1995.1,0.001]
[1772588603724,0.59885692,1995.6,1995.0,0.001]
[1772588603896,0.49885692,1995.6,1995.0,0.001]
[1772588604309,1.25461492,1995.9,1995.0,0.001]
[1772588604310,0.59885692,1995.8,1995.0,0.001]
[1772588604522,1.98085692,1995.8,1995.0,0.001]
[1772588604719,0.59885692,1995.7,1995.0,0.001]
[1772588605111,1.25275606,1995.6,1995.0,0.001]
[1772588605308,1.85161298,1995.6,1995.0,0.001]
[1772588605630,0.59885692,1995.5,1995.0,0.001]
[1772588607118,6.26772448,1995.7,1995.0,0.001]
[1772588607119,1.25269329,1995.7,1995.0,0.001]
[1772588607833,0.59885692,1995.6,1995.0,0.001]
[1772588608034,0.59885692,1995.3,1994.8,0.001]
[1772588608332,1.25269329,1995.7,1994.8,0.001]
[1772588608333,0.59885692,1995.5,1994.8,0.001]
[1772588608733,1.25269329,1995.7,1994.8,0.001]
[1772588608914,0.59885692,1995.6,1994.8,0.001]
[1772588609311,2.50966623,1995.5,1994.8,0.001]
[1772588609634,1.25684739,1995.5,1994.8,0.001]
[1772588609834,1.38,1995.4,1994.8,0.001]
[1772588610829,1.97885692,1995.4,1994.8,0.001]
[1772588611034,0.59885692,1995.3,1994.8,0.001]
[1772588611219,1.25684739,1995.7,1994.8,0.62804122]
[1772588611419,0.002,1995.9,1994.8,0.62804122]
[1772588611637,2.51142932,1995.9,1994.8,0.62804122]
[1772588611823,1.85570431,1995.7,1994.8,0.001]
[1772588612237,1.25684739,1995.5,1994.8,0.001]
[1772588612433,1.85570431,1995.5,1994.8,0.001]
[1772588613457,1.25458193,1995.9,1994.8,0.62804122]
[1772588613458,1.25267631,1995.8,1994.8,0.62804122]
[1772588613618,2.63167631,1995.8,1994.8,0.62804122]
[1772588614226,0.59885692,1995.7,1994.8,0.001]
[1772588614557,1.25684739,1995.6,1994.8,0.001]
[1772588614726,2.63167631,1995.8,1994.8,0.62804122]
[1772588614727,1.25267631,1995.8,1994.8,0.62804122]
[1772588614922,1.379,1995.7,1994.8,0.62804122]
[1772588615456,3.88860119,1995.7,1994.9,1.25319564]
[1772588616319,4.48945811,1995.7,1994.9,1.25319564]
[1772588616758,1.25684739,1995.3,1994.8,0.001]
[1772588616963,0.59885692,1995.2,1994.8,0.001]
[1772588617164,1.379,1995.1,1994.8,0.001]
[1772588617752,1.25313283,1995.0,1994.8,0.001]
[1772588618248,3.88894779,1995.1,1994.8,0.001]
[1772588618642,2.6321004,1995.1,1994.8,0.001]
[1772588618841,0.59885692,1995.0,1994.5,0.001]
[1772588619053,0.59885692,1995.0,1994.2,0.001]
[1772588619229,0.59885692,1995.0,1994.2,1.25463069]
[1772588619549,0.59885692,1995.0,1994.2,1.25462295]
[1772588619749,1.25319564,1994.9,1994.2,0.001]
[1772588620552,0.59885692,1994.8,1994.2,0.001]
[1772588622169,1.85212933,1994.8,1994.2,0.001]
[1772588622733,0.42889935,1994.7,1994.2,0.001]
[1772588622939,0.42889935,1994.6,1994.2,0.001]
[1772588623145,1.85212933,1994.8,1994.2,0.001]
[1772588623352,0.42874714,1994.7,1994.2,0.001]
[1772588623536,0.42874714,1994.6,1994.2,0.001]
[1772588623744,2.63146458,1994.5,1994.2,0.001]
[1772588623946,1.378,1994.5,1994.2,0.001]
[1772588624132,2.63144856,1994.5,1994.2,0.001]
[1772588624322,2.78777506,1994.4,1993.6,1.25401284]
[1772588624522,0.42858194,1994.3,1993.6,1.25401284]
[1772588624726,0.59885692,1994.4,1993.6,1.25401284]
[1772588624925,0.59885692,1994.4,1993.5,5.64309258]
[1772588624926,0.42858194,1994.3,1993.5,1.88107959]
[1772588625150,0.59885692,1994.4,1993.5,1.88107959]
[1772588625379,0.42830503,1994.3,1993.5,1.88107959]
[1772588625562,1.378,1994.3,1993.5,1.88107959]
[1772588625729,1.378,1994.3,1993.4,0.62704122]
[1772588625730,0.42830503,1994.2,1993.4,0.62704122]
[1772588625933,1.378,1994.2,1993.4,0.62704122]
[1772588627846,1.378,1994.2,1993.5,1.25407574]
[1772588628369,0.59885692,1994.6,1993.6,0.58052829]
[1772588628575,1.377,1994.3,1993.6,0.58052829]
[1772588629351,1.377,1994.4,1993.6,0.58052829]
[1772588629978,1.377,1994.4,1993.7,1.25394994]
[1772588630187,2.63051281,1994.4,1993.7,1.25394994]
[1772588630549,1.377,1994.4,1993.7,1.25394994]
[1772588630863,1.376,1994.4,1993.7,1.25394994]
[1772588631074,2.36877546,1995.0,1993.8,0.58052829]
[1772588631283,8.53441635,1995.5,1994.2,0.58052829]
[1772588631284,1.98443926,1995.3,1994.2,0.58052829]
[1772588631529,0.42756687,1995.2,1994.2,0.58052829]
[1772588631661,0.42756687,1995.1,1994.2,0.58052829]
[1772588631846,0.42756687,1995.0,1994.2,0.58052829]
[1772588632048,1.98443926,1995.3,1994.4,0.58052829]
[1772588632049,1.376,1995.3,1994.4,0.58052829]
[1772588632350,0.42772328,1995.2,1994.4,0.58052829]
[1772588632543,1.377,1995.4,1994.4,0.58052829]
[1772588632738,0.42772328,1995.3,1994.4,0.58052829]
[1772588632964,1.377,1995.4,1994.4,0.58052829]
[1772588633143,0.42772328,1995.3,1994.4,0.58052829]
[1772588633345,1.377,1995.4,1994.4,0.58052829]
[1772588633538,0.60843926,1995.2,1994.3,1.25357268]
[1772588634375,1.25307002,1995.1,1994.2,5.59481901]
[1772588635470,0.60843926,1994.7,1993.9,1.25381267]
[1772588635674,1.80193903,1994.6,1993.9,1.25381267]
[1772588635881,1.374,1994.6,1993.9,1.25381267]
[1772588636263,1.25344697,1994.5,1993.7,1.25394994]
[1772588637185,2.62743098,1994.6,1993.7,1.25394994]
[1772588638200,0.45701512,1994.5,1993.7,1.25394994]
[1772588638361,2.62739568,1994.6,1993.8,0.58052829]
[1772588638877,0.60843926,1995.1,1993.8,0.58052829]
[1772588639171,3.68863272,1995.0,1993.8,0.58052829]
[1772588639377,0.45701512,1994.9,1993.8,0.58052829]
[1772588639562,1.06545438,1994.9,1993.8,0.58052829]
[1772588639766,0.45701512,1994.8,1993.8,0.58052829]
[1772588640367,1.2533213,1994.7,1993.9,1.25382416]
[1772588640553,1.86176056,1994.7,1993.9,1.25382416]
[1772588640753,1.86176056,1994.7,1993.6,1.25497541]
[1772588640754,0.60843926,1994.5,1993.6,1.25497541]
[1772588641079,1.06549003,1994.4,1993.6,1.25499869]
[1772588641281,0.60843926,1994.4,1993.6,1.25499869]
[1772588641582,0.60843926,1994.4,1993.6,0.001]
[1772588641882,0.60843926,1994.2,1993.6,0.001]
[1772588642069,0.45705235,1994.1,1993.6,0.001]
[1772588642270,0.60843926,1994.2,1993.6,0.001]
[1772588642471,1.25376128,1994.0,1993.6,0.001]
[1772588642671,1.8621824,1994.1,1993.6,0.001]
[1772588643497,0.45704355,1994.0,1993.6,0.001]
[1772588643796,0.60843926,1994.0,1993.5,0.001]
[1772588644483,1.25382416,1993.9,1993.5,0.001]
[1772588644861,1.86223932,1994.0,1993.5,0.001]
[1772588645065,0.45732228,1993.9,1993.5,0.001]
[1772588645290,1.86201194,1994.3,1993.5,0.001]
[1772588645468,1.82223478,1994.2,1993.5,0.001]
[1772588645663,0.45723478,1994.1,1993.5,0.001]
[1772588645901,0.45723478,1994.0,1993.5,0.001]
[1772588646068,0.45751,1993.9,1993.5,0.001]
[1772588646268,1.365,1994.2,1993.5,0.001]
[1772588646468,1.71118591,1994.1,1993.5,0.001]
[1772588646696,0.45744982,1994.0,1993.5,0.001]
[1772588646886,0.45744982,1993.9,1993.5,0.001]
[1772588647086,1.25373609,1994.1,1993.5,0.001]
[1772588647295,0.45750805,1994.0,1993.5,0.001]
[1772588647496,0.45750805,1993.9,1993.5,0.001]
[1772588647696,1.25372587,1994.1,1993.5,0.001]
[1772588647998,0.45750805,1994.0,1993.5,0.001]
[1772588648167,0.45750805,1993.9,1993.5,0.001]
[1772588648369,1.86216513,1994.1,1993.5,0.001]
[1772588648592,1.25382416,1993.9,1993.5,0.001]
[1772588648788,0.45753588,1993.8,1993.5,0.001]
[1772588649006,1.86226342,1993.9,1993.3,0.001]
[1772588649170,0.45753588,1993.8,1993.3,0.001]
[1772588649370,1.86226342,1993.9,1993.3,0.001]
[1772588649592,0.45745285,1993.8,1993.3,0.001]
[1772588649900,1.86226342,1993.9,1993.3,0.001]
[1772588650199,0.45745285,1993.8,1993.3,0.001]
[1772588650415,1.86226342,1993.9,1993.3,0.001]
[1772588650718,1.71132681,1993.8,1993.3,0.001]
[1772588650916,1.86237576,1993.8,1993.3,0.001]
[1772588651092,1.06582957,1993.7,1993.3,0.001]
[1772588651417,1.82139031,1993.6,1993.3,0.001]
[1772588651710,1.364,1993.6,1993.3,0.001]
[1772588652084,1.97243926,1993.6,1993.3,0.001]